[Event "Shanghai COITCT 2019"]
[Site "Shanghai"]
[Date "2019.09.17"]
[Round "7.5"]
[White "Krishna C R G"]
[Black "Bai, Jinshi"]
[Result "0-1"]
[ECO "D00"]
[WhiteElo "2446"]
[BlackElo "2591"]
[Annotator "ChessBase"]
[PlyCount "84"]
[EventDate "2019.09.15"]
[EventType "team-tourn"]
[EventCountry "CHN"]
[SourceTitle "playchess.com"]
[Source "ChessBase"]
[SourceQuality "1"]
[TimeControl "1500+10"]

1. Nf3 {[%emt 0:00:00]} Nf6 {[%emt 0:00:07]} 2. d4 {[%emt 0:00:00]} g6 {[%emt 0:00:03]} 3. Nc3 {[%emt 0:00:00]} d5 {[%emt 0:00:02]} 4. Bf4 {[%emt 0:00:00]} Bg7 {[%emt 0:00:04]} 5. e3 {[%emt 0:00:00]} O-O {[%emt 0:00:03]} 6. Be2 {[%emt 0:00:01]} c5 {[%emt 0:00:04]} 7. dxc5 {[%emt 0:00:02]} Nbd7 {[%emt 0:00:02]} 8. O-O {[%emt 0:00:03]} Nxc5 {[%emt 0:00:03]} 9. Be5 {[%emt 0:00:01]} b6 {[%emt 0:00:21]} 10. a4 {[%emt 0:00:02]} Bb7 {[%emt 0:00:01]} 11. Bd4 {[%emt 0:00:48]} Ne6 {[%emt 0:00:14]} 12. Be5 {[%emt 0:00:01]} Nc5 {[%emt 0:00:20]} 13. Ra3 {[%emt 0:00:10]} Ncd7 {[%emt 0:00:34]} 14. Bd4 {[%emt 0:00:32]} Qb8 {[%emt 0:02:12]} 15. Na2 {[%emt 0:00:02]} e5 {[%emt 0:00:08]} 16. Bc3 {[%emt 0:00:01]} a6 {[%emt 0:01:45]} 17. a5 {[%emt 0:00:01]} b5 {[%emt 0:00:05]} 18. Bb4 {[%emt 0:00:07]} Re8 {[%emt 0:00:10]} 19. h3 {[%emt 0:03:09]} Qa7 {[%emt 0:00:11]} 20. Rc3 {[%emt 0:00:08]} Rad8 {[%emt 0:00:32]} 21. Nc1 {[%emt 0:01:36]} d4 {[%emt 0:00:34]} 22. exd4 {[%emt 0:00:02]} e4 {[%emt 0:00:34]} 23. Nh2 {[%emt 0:01:20]} Nd5 {[%emt 0:00:03]} 24. Rb3 {[%emt 0:00:01]} Bxd4 {[%emt 0:00:31]} 25. Qe1 {[%emt 0:01:08]} Nc5 {[%emt 0:01:18]} 26. Bxc5 {[%emt 0:00:24]} Qxc5 {[%emt 0:00:02]} 27. c3 {[%emt 0:05:21]} Bg7 {[%emt 0:00:04]} 28. g3 {[%emt 0:03:01]} Re7 {[%emt 0:01:11]} 29. Ra3 {[%emt 0:00:47]} Qc8 {[%emt 0:01:12]} 30. h4 {[%emt 0:00:19]} f5 {[%emt 0:00:29]} 31. Nb3 {[%emt 0:00:36]} f4 {[%emt 0:00:02]} 32. Bg4 {[%emt 0:00:05]} Qc7 {[%emt 0:00:46]} 33. Nd4 {[%emt 0:00:06]} Rde8 {[%emt 0:00:01]} 34. gxf4 {[%emt 0:02:10]} Qxf4 {[%emt 0:00:05]} 35. Ne2 {[%emt 0:01:52]} Qc7 {[%emt 0:01:43]} 36. Bh3 {[%emt 0:00:28]} h5 {[%emt 0:01:33]} 37. Kg2 {[%emt 0:00:38]} Be5 {[%emt 0:00:32]} 38. Rh1 {[%emt 0:00:03]} Nf4+ {[%emt 0:00:40]} 39. Nxf4 {[%emt 0:00:06]} Bxf4 {[%emt 0:00:01]} 40. Qe2 {[%emt 0:00:33]} e3+ {[%emt 0:00:35]} 41. f3 {[%emt 0:00:01]} Bxh2 {[%emt 0:00:04]} 42. Rxh2 {[%emt 0:00:03]} Rd8 {[%emt 0:00:12]} 0-1

[Event "Shanghai COITCT 2019"]
[Site "Shanghai"]
[Date "2019.09.17"]
[Round "7.6"]
[White "Wen, Yang"]
[Black "Kulkarni Bhakti"]
[Result "1/2-1/2"]
[ECO "C77"]
[WhiteElo "2586"]
[BlackElo "2429"]
[Annotator "ChessBase"]
[PlyCount "99"]
[EventDate "2019.09.15"]
[EventType "team-tourn"]
[EventCountry "CHN"]
[SourceTitle "playchess.com"]
[Source "ChessBase"]
[SourceQuality "1"]
[TimeControl "1500+10"]

1. e4 {[%emt 0:00:02]} e5 {[%emt 0:00:00]} 2. Nf3 {[%emt 0:00:04]} Nc6 {[%emt 0:00:00]} 3. Bb5 {[%emt 0:00:29]} a6 {[%emt 0:00:17]} 4. Ba4 {[%emt 0:00:02]} Nf6 {[%emt 0:00:04]} 5. d3 {[%emt 0:00:02]} b5 {[%emt 0:00:23]} 6. Bb3 {[%emt 0:00:02]} Bc5 {[%emt 0:00:04]} 7. Nc3 {[%emt 0:00:16]} h6 {[%emt 0:00:37]} 8. Nd5 {[%emt 0:01:05]} d6 {[%emt 0:00:37]} 9. c3 {[%emt 0:00:13]} O-O {[%emt 0:00:10]} 10. Nxf6+ {[%emt 0:00:10]} Qxf6 {[%emt 0:00:10]} 11. Bd5 {[%emt 0:00:10]} Bd7 {[%emt 0:00:10]} 12. Rg1 {[%emt 0:00:10]} Qe7 {[%emt 0:00:10]} 13. g4 {[%emt 0:00:10]} Kh8 {[%emt 0:00:10]} 14. g5 {[%emt 0:00:10]} Rae8 {[%emt 0:00:10]} 15. Nh4 {[%emt 0:00:10]} g6 {[%emt 0:00:10]} 16. Nf5 {[%emt 0:00:10]} Bxf5 {[%emt 0:00:10]} 17. exf5 {[%emt 0:00:10]} Qd7 {[%emt 0:11:02]} 18. f6 {[%emt 0:03:28]} Qf5 {[%emt 0:00:10]} 19. Qf3 {[%emt 0:00:10]} Qxf3 {[%emt 0:00:10]} 20. Bxf3 {[%emt 0:06:43]} e4 21. dxe4 {[%emt 0:00:00]} d5 {[%emt 0:00:20]} 22. a4 {[%emt 0:00:00]} Ne5 {[%emt 0:00:30]} 23. Be2 {[%emt 0:00:00]} dxe4 {[%emt 0:00:07]} 24. Rg3 {[%emt 0:00:00]} Nd3+ {[%emt 0:01:15]} 25. Bxd3 {[%emt 0:00:00]} exd3+ {[%emt 0:00:02]} 26. Be3 {[%emt 0:00:00]} hxg5 {[%emt 0:00:54]} 27. axb5 {[%emt 0:00:00]} axb5 {[%emt 0:00:07]} 28. Kd2 {[%emt 0:00:00]} Bxe3+ {[%emt 0:00:15]} 29. fxe3 {[%emt 0:00:00]} Re6 {[%emt 0:00:11]} 30. Rf1 {[%emt 0:00:00]} Rfe8 {[%emt 0:00:17]} 31. Rff3 {[%emt 0:00:19]} Re5 {[%emt 0:00:16]} 32. b4 {[%emt 0:00:24]} c5 {[%emt 0:00:27]} 33. bxc5 {[%emt 0:00:06]} Rxc5 {[%emt 0:00:03]} 34. Rg4 {[%emt 0:00:02]} Rec8 {[%emt 0:00:22]} 35. Rb4 {[%emt 0:02:00]} Rxc3 {[%emt 0:00:20]} 36. Rxb5 {[%emt 0:00:01]} g4 {[%emt 0:00:39]} 37. Rf4 {[%emt 0:00:14]} Ra3 {[%emt 0:01:51]} 38. Rb2 {[%emt 0:00:03]} Rc2+ {[%emt 0:00:06]} 39. Rxc2 {[%emt 0:00:26]} dxc2 {[%emt 0:00:02]} 40. Rc4 {[%emt 0:00:14]} Ra6 {[%emt 0:00:23]} 41. Rxg4 {[%emt 0:00:14]} Rxf6 {[%emt 0:00:11]} 42. Rh4+ {[%emt 0:00:01]} Kg7 {[%emt 0:00:02]} 43. Kxc2 {[%emt 0:00:02]} Rd6 {[%emt 0:00:10]} 44. Rf4 {[%emt 0:00:17]} f5 {[%emt 0:00:13]} 45. e4 {[%emt 0:00:20]} Rd4 {[%emt 0:00:03]} 46. Kc3 {[%emt 0:00:02]} Ra4 {[%emt 0:00:57]} 47. Kd3 {[%emt 0:00:01]} Ra3+ {[%emt 0:00:18]} 48. Kd4 {[%emt 0:00:09]} Ra4+ {[%emt 0:00:05]} 49. Ke3 {[%emt 0:00:05]} Rxe4+ {[%emt 0:00:03]} 50. Rxe4 {[%emt 0:00:02]} 1/2-1/2

[Event "Shanghai COITCT 2019"]
[Site "Shanghai"]
[Date "2019.09.17"]
[Round "7.7"]
[White "Lodhi, Mahmood"]
[Black "Idani, Pouya"]
[Result "1/2-1/2"]
[ECO "E05"]
[WhiteElo "2349"]
[BlackElo "2586"]
[Annotator "ChessBase"]
[PlyCount "95"]
[EventDate "2019.09.15"]
[EventType "team-tourn"]
[EventCountry "CHN"]
[SourceTitle "playchess.com"]
[Source "ChessBase"]
[SourceQuality "1"]
[TimeControl "1500+10"]

1. d4 {[%emt 0:00:00]} Nf6 {[%emt 0:00:00]} 2. Nf3 {[%emt 0:00:00]} d5 {[%emt 0:00:07]} 3. g3 {[%emt 0:00:00]} e6 {[%emt 0:00:24]} 4. Bg2 {[%emt 0:00:00]} Be7 {[%emt 0:00:15]} 5. O-O {[%emt 0:00:00]} O-O {[%emt 0:00:01]} 6. c4 {[%emt 0:00:07]} dxc4 {[%emt 0:00:02]} 7. Qa4 {[%emt 0:00:37]} Qd5 {[%emt 0:00:06]} 8. Nc3 {[%emt 0:00:54]} Qc6 {[%emt 0:00:01]} 9. Qc2 {[%emt 0:00:23]} Qa6 {[%emt 0:00:01]} 10. a4 {[%emt 0:00:16]} c6 {[%emt 0:01:01]} 11. Bg5 {[%emt 0:00:26]} Nbd7 {[%emt 0:00:43]} 12. e4 {[%emt 0:00:18]} h6 {[%emt 0:00:10]} 13. Bxf6 {[%emt 0:00:39]} Bxf6 {[%emt 0:01:09]} 14. e5 {[%emt 0:00:11]} Be7 {[%emt 0:00:02]} 15. Ne4 {[%emt 0:00:29]} c5 {[%emt 0:02:03]} 16. dxc5 {[%emt 0:00:11]} Nxc5 {[%emt 0:00:01]} 17. Nxc5 {[%emt 0:00:27]} Bxc5 {[%emt 0:00:01]} 18. Rfc1 {[%emt 0:00:04]} Bd7 {[%emt 0:00:31]} 19. Qxc4 {[%emt 0:00:53]} Qxc4 {[%emt 0:00:06]} 20. Rxc4 {[%emt 0:00:01]} Rac8 {[%emt 0:00:01]} 21. Rac1 {[%emt 0:00:19]} b6 {[%emt 0:01:16]} 22. Ne1 {[%emt 0:02:05]} Rfd8 {[%emt 0:03:58]} 23. Nd3 {[%emt 0:02:04]} Bxa4 {[%emt 0:05:22]} 24. Nxc5 {[%emt 0:00:06]} Bb5 {[%emt 0:00:01]} 25. R4c2 {[%emt 0:04:20]} Rxc5 {[%emt 0:00:58]} 26. Rxc5 {[%emt 0:00:02]} bxc5 {[%emt 0:00:01]} 27. Bf1 {[%emt 0:00:25]} Bxf1 {[%emt 0:00:14]} 28. Kxf1 {[%emt 0:00:04]} Rd5 {[%emt 0:00:01]} 29. f4 {[%emt 0:00:03]} g5 {[%emt 0:00:02]} 30. Ke2 {[%emt 0:00:12]} Kg7 {[%emt 0:01:47]} 31. Ke3 {[%emt 0:00:17]} Kg6 {[%emt 0:00:13]} 32. Ra1 {[%emt 0:02:53]} Rd7 {[%emt 0:00:57]} 33. Ra5 {[%emt 0:00:24]} Rb7 {[%emt 0:00:53]} 34. Rxc5 {[%emt 0:00:18]} Rxb2 {[%emt 0:00:03]} 35. Ra5 {[%emt 0:00:02]} g4 {[%emt 0:00:42]} 36. Rxa7 {[%emt 0:00:56]} Rxh2 {[%emt 0:00:03]} 37. Ra6 {[%emt 0:01:13]} Rg2 {[%emt 0:01:01]} 38. Ke4 {[%emt 0:00:04]} Rxg3 {[%emt 0:00:58]} 39. f5+ {[%emt 0:00:02]} Kg5 {[%emt 0:00:01]} 40. fxe6 {[%emt 0:00:26]} fxe6 {[%emt 0:00:01]} 41. Rxe6 {[%emt 0:00:02]} Rg1 {[%emt 0:00:02]} 42. Ke3 {[%emt 0:00:25]} h5 {[%emt 0:00:13]} 43. Re8 {[%emt 0:00:17]} Re1+ {[%emt 0:00:24]} 44. Kf2 {[%emt 0:00:07]} Re4 {[%emt 0:00:04]} 45. e6 {[%emt 0:01:35]} h4 {[%emt 0:02:05]} 46. e7 {[%emt 0:00:09]} Kf6 {[%emt 0:00:54]} 47. Rh8 {[%emt 0:00:07]} g3+ {[%emt 0:00:54]} 48. Kf3 {[%emt 0:00:06]} 1/2-1/2

[Event "Shanghai COITCT 2019"]
[Site "Shanghai"]
[Date "2019.09.17"]
[Round "7.8"]
[White "Darini, Pouria"]
[Black "Khan, Mohd. Omer"]
[Result "1-0"]
[ECO "B12"]
[WhiteElo "2428"]
[BlackElo "2273"]
[Annotator "NA"]
[PlyCount "61"]
[EventDate "2019.09.15"]
[EventType "team-tourn"]
[EventCountry "CHN"]
[SourceTitle "playchess.com"]
[Source "ChessBase"]
[SourceQuality "1"]
[TimeControl "1500+10"]

1. e4 {[%emt 0:00:00]} c6 {[%emt 0:00:00]} 2. d4 {[%emt 0:00:08]} d5 {[%emt 0:00:00]} 3. e5 {[%emt 0:00:01]} Bf5 {[%emt 0:00:00]} 4. Nf3 {[%emt 0:00:06]} e6 {[%emt 0:00:09]} 5. Be2 {[%emt 0:00:02]} Nd7 {[%emt 0:00:10]} 6. O-O {[%emt 0:00:02]} Rc8 {[%emt 0:00:49]} 7. Nbd2 {[%emt 0:01:02]} c5 {[%emt 0:00:33]} 8. c3 {[%emt 0:00:10]} cxd4 {[%emt 0:00:24]} 9. Nxd4 {[%emt 0:00:01]} Bg6 {[%emt 0:00:04]} 10. N2f3 {[%emt 0:00:48]} Ne7 {[%emt 0:01:34]} 11. Bg5 {[%emt 0:00:27]} a6 {[%emt 0:00:18]} 12. Rc1 {[%emt 0:02:41]} Qb6 {[%emt 0:00:27]} 13. c4 {[%emt 0:02:21]} dxc4 {[%emt 0:03:16]} 14. Bxc4 {[%emt 0:00:57]} Qxb2 {[%emt 0:01:09]} 15. Nxe6 {[%emt 0:06:00]} fxe6 {[%emt 0:06:15]} 16. Bxe6 {[%emt 0:00:01]} Rd8 {[%emt 0:00:01]} 17. Qa4 {[%emt 0:05:39]} Qb5 {[%emt 0:01:19]} 18. Qf4 {[%emt 0:01:35]} Nc5 {[%emt 0:02:19]} 19. Bc4 {[%emt 0:00:01]} Qd7 {[%emt 0:03:22]} 20. e6 {[%emt 0:01:40]} Nxe6 {[%emt 0:01:43]} 21. Bxe6 {[%emt 0:00:09]} Qxe6 {[%emt 0:00:03]} 22. Rfe1 {[%emt 0:00:01]} Qd6 {[%emt 0:00:49]} 23. Ne5 {[%emt 0:00:48]} Qd4 {[%emt 0:01:18]} 24. Qf3 {[%emt 0:00:37]} Qd5 {[%emt 0:01:17]} 25. Qa3 {[%emt 0:00:04]} Qd6 {[%emt 0:00:05]} 26. Qb3 {[%emt 0:00:46]} Qd5 {[%emt 0:00:09]} 27. Qb4 {[%emt 0:00:38]} Qb5 {[%emt 0:00:19]} 28. Qh4 {[%emt 0:00:36]} Nf5 {[%emt 0:01:20]} 29. Nxg6+ {[%emt 0:00:20]} Kd7 {[%emt 0:00:15]} 30. Qe4 {[%emt 0:00:40]} hxg6 {[%emt 0:00:15]} 31. Qe6# 1-0

[Event "Shanghai COITCT 2019"]
[Site "Shanghai"]
[Date "2019.09.17"]
[Round "7.12"]
[White "Murzin, Volodar"]
[Black "Zarubitski, Viachaslau"]
[Result "1/2-1/2"]
[ECO "B11"]
[WhiteElo "2433"]
[BlackElo "2435"]
[Annotator "NA"]
[PlyCount "75"]
[EventDate "2019.09.15"]
[EventType "team-tourn"]
[EventCountry "CHN"]
[SourceTitle "playchess.com"]
[Source "ChessBase"]
[SourceQuality "1"]
[TimeControl "1500+10"]

1. e4 {[%emt 0:00:00]} c6 {[%emt 0:00:00]} 2. Nf3 {[%emt 0:00:00]} d5 {[%emt 0:00:00]} 3. Nc3 {[%emt 0:00:00]} Bg4 {[%emt 0:00:00]} 4. h3 {[%emt 0:00:00]} Bxf3 {[%emt 0:00:00]} 5. Qxf3 {[%emt 0:00:02]} Nf6 {[%emt 0:00:01]} 6. g3 {[%emt 0:00:38]} e6 {[%emt 0:00:42]} 7. Bg2 {[%emt 0:00:02]} Bb4 {[%emt 0:00:40]} 8. e5 {[%emt 0:01:01]} Nfd7 {[%emt 0:00:01]} 9. Qg4 {[%emt 0:00:01]} Bf8 {[%emt 0:00:01]} 10. f4 {[%emt 0:02:24]} Qb6 {[%emt 0:00:35]} 11. d3 {[%emt 0:00:42]} g6 {[%emt 0:00:30]} 12. Ne2 {[%emt 0:01:00]} c5 {[%emt 0:00:40]} 13. O-O {[%emt 0:00:37]} Nc6 {[%emt 0:00:00]} 14. c3 {[%emt 0:01:28]} Be7 {[%emt 0:00:28]} 15. Qf3 {[%emt 0:00:49]} O-O-O {[%emt 0:01:59]} 16. Kh1 {[%emt 0:00:57]} h5 {[%emt 0:00:07]} 17. h4 {[%emt 0:00:57]} Qa6 {[%emt 0:01:06]} 18. Bh3 {[%emt 0:01:39]} Kc7 {[%emt 0:01:32]} 19. Bd2 {[%emt 0:00:10]} c4 {[%emt 0:00:50]} 20. d4 {[%emt 0:00:38]} b5 {[%emt 0:00:21]} 21. f5 {[%emt 0:01:09]} gxf5 {[%emt 0:02:27]} 22. Nf4 {[%emt 0:00:11]} b4 {[%emt 0:00:30]} 23. Bxf5 {[%emt 0:02:51]} bxc3 {[%emt 0:03:23]} 24. bxc3 {[%emt 0:00:10]} exf5 {[%emt 0:00:05]} 25. Nxd5+ {[%emt 0:00:10]} Kc8 {[%emt 0:00:24]} 26. Rab1 {[%emt 0:00:49]} Ba3 {[%emt 0:02:29]} 27. Bf4 {[%emt 0:01:32]} Qa4 {[%emt 0:01:59]} 28. Ne3 {[%emt 0:04:47]} Nb6 {[%emt 0:04:44]} 29. d5 {[%emt 0:00:33]} Ne7 {[%emt 0:00:19]} 30. d6 {[%emt 0:00:29]} Ng6 {[%emt 0:00:36]} 31. Nd5 {[%emt 0:00:32]} Bc5 {[%emt 0:01:22]} 32. Rfd1 {[%emt 0:01:20]} Kb8 {[%emt 0:00:41]} 33. Nc7 {[%emt 0:01:08]} Kc8 {[%emt 0:00:19]} 34. Nb5 {[%emt 0:00:03]} Kb8 {[%emt 0:00:56]} 35. Nc7 {[%emt 0:00:51]} Kc8 36. Nb5 {[%emt 0:00:35]} Kb8 {[%emt 0:00:02]} 37. Nc7 {[%emt 0:00:14]} Kc8 {[%emt 0:00:23]} 38. Nb5 {[%emt 0:00:02]} 1/2-1/2

[Event "Shanghai COITCT 2019"]
[Site "Shanghai"]
[Date "2019.09.17"]
[Round "7.13"]
[White "Xu, Zhihang"]
[Black "Orozbaev, Eldiar"]
[Result "1/2-1/2"]
[ECO "A88"]
[WhiteElo "2506"]
[BlackElo "1908"]
[Annotator "ChessBase"]
[PlyCount "67"]
[EventDate "2019.09.15"]
[EventType "team-tourn"]
[EventCountry "CHN"]
[SourceTitle "playchess.com"]
[Source "ChessBase"]
[SourceQuality "1"]
[TimeControl "1500+10"]

1. d4 {[%emt 0:00:00]} f5 {[%emt 0:00:00]} 2. c4 {[%emt 0:00:00]} Nf6 {[%emt 0:00:00]} 3. Nf3 {[%emt 0:00:00]} g6 {[%emt 0:00:00]} 4. g3 {[%emt 0:00:01]} Bg7 {[%emt 0:00:00]} 5. Bg2 {[%emt 0:00:02]} O-O {[%emt 0:00:00]} 6. O-O {[%emt 0:00:02]} d6 {[%emt 0:00:00]} 7. Nc3 {[%emt 0:00:01]} Qe8 {[%emt 0:00:03]} 8. Re1 {[%emt 0:00:01]} c6 {[%emt 0:00:19]} 9. e4 {[%emt 0:00:06]} fxe4 {[%emt 0:00:22]} 10. Nxe4 {[%emt 0:00:02]} Nxe4 {[%emt 0:00:14]} 11. Rxe4 {[%emt 0:00:02]} Bf5 {[%emt 0:00:02]} 12. Re1 {[%emt 0:00:38]} Bg4 {[%emt 0:00:14]} 13. Bg5 {[%emt 0:02:55]} e5 {[%emt 0:02:30]} 14. dxe5 {[%emt 0:00:48]} dxe5 {[%emt 0:00:05]} 15. Qb3 {[%emt 0:01:08]} Qf7 {[%emt 0:00:44]} 16. Nxe5 {[%emt 0:00:55]} Bxe5 {[%emt 0:01:38]} 17. Rxe5 {[%emt 0:00:10]} Nd7 {[%emt 0:02:50]} 18. Re7 {[%emt 0:00:02]} Qxf2+ {[%emt 0:00:02]} 19. Kh1 {[%emt 0:00:01]} Rf3 {[%emt 0:04:54]} 20. Qxb7 {[%emt 0:01:16]} Rb8 {[%emt 0:01:33]} 21. Qxc6 {[%emt 0:00:51]} Rxb2 {[%emt 0:03:19]} 22. Qd5+ {[%emt 0:00:47]} Kf8 {[%emt 0:00:39]} 23. Qa8+ {[%emt 0:03:36]} Nb8 {[%emt 0:00:45]} 24. Re8+ {[%emt 0:00:43]} Kxe8 {[%emt 0:01:07]} 25. Qe4+ {[%emt 0:00:02]} Kf7 {[%emt 0:00:34]} 26. Qe7+ {[%emt 0:01:11]} Kg8 {[%emt 0:00:40]} 27. Qe8+ {[%emt 0:00:01]} Kg7 {[%emt 0:00:57]} 28. Qe7+ {[%emt 0:01:31]} Rf7 {[%emt 0:00:25]} 29. Qe5+ {[%emt 0:00:02]} Kg8 {[%emt 0:02:04]} 30. Qe8+ {[%emt 0:00:01]} Kg7 {[%emt 0:00:10]} 31. Qe5+ {[%emt 0:00:01]} Kg8 {[%emt 0:00:36]} 32. Qe8+ {[%emt 0:00:02]} Kg7 {[%emt 0:00:22]} 33. Qe5+ {[%emt 0:00:04]} Rf6 {[%emt 0:01:14]} 34. Qe7+ {[%emt 0:00:02]} 1/2-1/2

[Event "Shanghai COITCT 2019"]
[Site "Shanghai"]
[Date "2019.09.17"]
[Round "7.14"]
[White "Zairbek kyzy, Begimai"]
[Black "Ma, Zhonghan"]
[Result "0-1"]
[ECO "B21"]
[WhiteElo "1989"]
[BlackElo "2485"]
[Annotator "ChessBase"]
[PlyCount "126"]
[EventDate "2019.09.15"]
[EventType "team-tourn"]
[EventCountry "CHN"]
[SourceTitle "playchess.com"]
[Source "ChessBase"]
[SourceQuality "1"]
[TimeControl "1500+10"]

1. e4 {[%emt 0:00:00]} c5 {[%emt 0:00:00]} 2. d4 {[%emt 0:00:00]} cxd4 {[%emt 0:00:11]} 3. c3 {[%emt 0:00:00]} d3 {[%emt 0:00:33]} 4. Bxd3 {[%emt 0:00:03]} Nc6 {[%emt 0:00:02]} 5. Nf3 {[%emt 0:00:06]} g6 {[%emt 0:00:03]} 6. O-O {[%emt 0:00:04]} Bg7 {[%emt 0:00:01]} 7. Qe2 {[%emt 0:00:09]} d6 {[%emt 0:00:13]} 8. h3 {[%emt 0:00:01]} Nf6 {[%emt 0:00:04]} 9. Be3 {[%emt 0:00:06]} O-O {[%emt 0:00:04]} 10. Rd1 {[%emt 0:00:03]} Qc7 {[%emt 0:00:08]} 11. Na3 {[%emt 0:00:10]} b6 {[%emt 0:02:46]} 12. Nb5 {[%emt 0:00:31]} Qb8 {[%emt 0:00:07]} 13. Bf4 {[%emt 0:00:48]} Bb7 {[%emt 0:00:12]} 14. Bh2 {[%emt 0:02:37]} Nd7 {[%emt 0:00:57]} 15. Rac1 {[%emt 0:00:44]} Nde5 {[%emt 0:04:22]} 16. Bb1 {[%emt 0:01:10]} Nxf3+ {[%emt 0:01:12]} 17. Qxf3 {[%emt 0:00:02]} Ne5 {[%emt 0:00:31]} 18. Qe2 {[%emt 0:00:23]} a6 {[%emt 0:00:04]} 19. Nd4 {[%emt 0:00:25]} b5 {[%emt 0:00:11]} 20. f4 {[%emt 0:00:33]} Nc6 {[%emt 0:01:22]} 21. Nf3 {[%emt 0:01:16]} Qa7+ {[%emt 0:00:39]} 22. Kh1 {[%emt 0:00:01]} Rad8 {[%emt 0:00:02]} 23. Bg1 {[%emt 0:00:07]} Qb8 {[%emt 0:00:01]} 24. Bb6 {[%emt 0:00:02]} Rc8 {[%emt 0:00:14]} 25. b3 {[%emt 0:01:43]} Ba8 {[%emt 0:00:08]} 26. Be3 {[%emt 0:00:02]} Na5 {[%emt 0:02:28]} 27. Qd2 {[%emt 0:02:03]} Qc7 {[%emt 0:00:12]} 28. Nd4 {[%emt 0:01:33]} Rfd8 {[%emt 0:00:06]} 29. f5 {[%emt 0:00:40]} Nc6 {[%emt 0:02:58]} 30. Bh6 {[%emt 0:01:06]} Bf6 {[%emt 0:01:24]} 31. fxg6 {[%emt 0:00:45]} hxg6 {[%emt 0:00:04]} 32. Bg5 {[%emt 0:00:10]} Bg7 {[%emt 0:02:28]} 33. Rf1 {[%emt 0:00:11]} Rf8 {[%emt 0:01:06]} 34. Bh6 {[%emt 0:00:22]} Nxd4 {[%emt 0:00:09]} 35. cxd4 {[%emt 0:00:03]} Qd7 {[%emt 0:00:51]} 36. Bxg7 {[%emt 0:02:54]} Kxg7 {[%emt 0:00:00]} 37. d5 {[%emt 0:00:03]} Bb7 {[%emt 0:00:38]} 38. Qd4+ {[%emt 0:00:05]} f6 {[%emt 0:00:29]} 39. Qd3 {[%emt 0:00:21]} Rxc1 {[%emt 0:00:32]} 40. Rxc1 {[%emt 0:00:00]} Rc8 {[%emt 0:00:04]} 41. Rf1 {[%emt 0:00:07]} Qe8 {[%emt 0:00:03]} 42. Bc2 {[%emt 0:00:43]} e5 {[%emt 0:00:14]} 43. Bd1 {[%emt 0:00:20]} Rc7 {[%emt 0:00:07]} 44. Qf3 {[%emt 0:00:06]} Rf7 {[%emt 0:00:55]} 45. Qg3 {[%emt 0:00:02]} Rf8 {[%emt 0:00:05]} 46. Be2 {[%emt 0:01:13]} Qf7 {[%emt 0:00:09]} 47. Qe3 {[%emt 0:00:17]} Qe7 {[%emt 0:00:28]} 48. a4 {[%emt 0:00:30]} bxa4 {[%emt 0:00:25]} 49. bxa4 {[%emt 0:00:01]} f5 {[%emt 0:00:26]} 50. Bf3 {[%emt 0:01:38]} fxe4 {[%emt 0:00:01]} 51. Qxe4 {[%emt 0:00:02]} Rf4 {[%emt 0:00:02]} 52. Qc2 {[%emt 0:00:35]} Bxd5 {[%emt 0:00:05]} 53. Bxd5 {[%emt 0:01:38]} Rxf1+ {[%emt 0:00:02]} 54. Kh2 {[%emt 0:00:01]} Qf6 {[%emt 0:00:10]} 55. Qc7+ {[%emt 0:00:50]} Kh6 {[%emt 0:00:01]} 56. Qc4 {[%emt 0:00:57]} Qf4+ {[%emt 0:00:01]} 57. Qxf4+ {[%emt 0:00:03]} Rxf4 {[%emt 0:00:01]} 58. Bc6 {[%emt 0:00:12]} a5 {[%emt 0:00:02]} 59. Kg3 {[%emt 0:00:08]} Kg5 {[%emt 0:00:02]} 60. Kh2 {[%emt 0:00:15]} Rc4 {[%emt 0:00:02]} 61. Bb5 {[%emt 0:00:04]} Rc3 {[%emt 0:00:02]} 62. Kg1 {[%emt 0:00:18]} e4 {[%emt 0:00:02]} 63. Kf2 {[%emt 0:00:42]} Kf4 {[%emt 0:00:09]} 0-1